[Event "Titled Tuesday Blitz February 22 Late 2022"]
[White "Cunha, Lucas Aguiar"]
[Black "Saveliev, Alexei"]
[WhiteFideId "2125404"]
[BlackFideId "24128546"]
[WhiteElo "2361"]
[BlackElo "2281"]
[Result "0-1"]
[Round "06"]
[TimeControl "180+1"]
[Date "2022.02.23"]
[WhiteClock "0:00:36"]
[BlackClock "0:00:07"]

1. e4 {[%clk 0:03:00]}  g6 {[%clk 0:01:45]} 2. d4 {[%clk 0:02:59]}  Bg7 {[%clk 0:01:44]} 3. Nc3 {[%clk 0:03:00]}  d6 {[%clk 0:01:44]} 4. Be3 {[%clk 0:03:00]}  Nc6 {[%clk 0:01:44]} 5. d5 {[%clk 0:02:58]}  Ne5 {[%clk 0:01:44]} 6. h3 {[%clk 0:02:58]}  Nf6 {[%clk 0:01:44]} 7. f4 {[%clk 0:02:57]}  Ned7 {[%clk 0:01:45]} 8. Nf3 {[%clk 0:02:58]}  O-O {[%clk 0:01:45]} 9. Bc4 {[%clk 0:02:55]}  c6 {[%clk 0:01:40]} 10. a4 {[%clk 0:02:44]}  cxd5 {[%clk 0:01:37]} 11. exd5 {[%clk 0:02:43]}  Nc5 {[%clk 0:01:15]} 12. O-O {[%clk 0:02:37]}  Bf5 {[%clk 0:01:06]} 13. Nd4 {[%clk 0:02:29]}  Rc8 {[%clk 0:01:02]} 14. Nxf5 {[%clk 0:02:28]}  gxf5 {[%clk 0:01:03]} 15. Nb5 {[%clk 0:02:23]}  a6 {[%clk 0:00:55]} 16. Nd4 {[%clk 0:02:22]}  Qd7 {[%clk 0:00:52]} 17. c3 {[%clk 0:02:17]}  Kh8 {[%clk 0:00:42]} 18. Qc2 {[%clk 0:02:13]}  Nce4 {[%clk 0:00:41]} 19. Ba2 {[%clk 0:02:08]}  Rg8 {[%clk 0:00:34]} 20. Rfe1 {[%clk 0:02:01]}  Rc5 {[%clk 0:00:33]} 21. Nf3 {[%clk 0:01:52]}  Rcc8 {[%clk 0:00:29]} 22. Rad1 {[%clk 0:01:50]}  h6 {[%clk 0:00:29]} 23. Bd4 {[%clk 0:01:42]}  b5 {[%clk 0:00:29]} 24. axb5 {[%clk 0:01:39]}  axb5 {[%clk 0:00:29]} 25. Qe2 {[%clk 0:01:34]}  Nh5 {[%clk 0:00:26]} 26. Qe3 {[%clk 0:01:30]}  Bxd4 {[%clk 0:00:21]} 27. Rxd4 {[%clk 0:01:27]}  Rg3 {[%clk 0:00:16]} 28. Bb1 {[%clk 0:01:22]}  Rcg8 {[%clk 0:00:16]} 29. Re2 {[%clk 0:01:20]}  Rxh3 {[%clk 0:00:13]} 30. Bxe4 {[%clk 0:01:18]}  fxe4 {[%clk 0:00:14]} 31. Rxe4 {[%clk 0:01:17]}  Qg4 {[%clk 0:00:15]} 32. Qd4+ {[%clk 0:00:59]}  Kh7 {[%clk 0:00:12]} 33. Ne1 {[%clk 0:00:53]}  Ng3 {[%clk 0:00:10]} 34. Qd3 {[%clk 0:00:46]}  Rh1+ {[%clk 0:00:08]} 35. Kf2 {[%clk 0:00:45]}  Nxe4+ {[%clk 0:00:08]} 36. Qxe4+ {[%clk 0:00:43]}  f5 {[%clk 0:00:09]} 37. Qxe7+ {[%clk 0:00:39]}  Rg7 {[%clk 0:00:09]} 38. Qe3 {[%clk 0:00:38]}  Qh4+ {[%clk 0:00:08]} 39. g3 {[%clk 0:00:36]}  Qh2+ {[%clk 0:00:07]} 0-1


[Site "https://www.chess.com"]

[Event "Titled Tuesday Blitz February 22 Late 2022"]
[White "Curtis, John"]
[Black "Al Hosani, Omran"]
[WhiteFideId "3200256"]
[BlackFideId "9308733"]
[WhiteElo "2203"]
[BlackElo "2246"]
[Result "1-0"]
[Round "06"]
[TimeControl "180+1"]
[Date "2022.02.23"]
[WhiteClock "0:00:34"]
[BlackClock "0:00:10"]

1. e4 {[%clk 0:03:00]}  c6 {[%clk 0:02:58]} 2. d4 {[%clk 0:02:59]}  d5 {[%clk 0:02:44]} 3. exd5 {[%clk 0:02:58]}  cxd5 {[%clk 0:02:43]} 4. Nf3 {[%clk 0:02:58]}  Nf6 {[%clk 0:02:43]} 5. Bd3 {[%clk 0:02:56]}  Nc6 {[%clk 0:02:42]} 6. c3 {[%clk 0:02:56]}  g6 {[%clk 0:02:42]} 7. Bf4 {[%clk 0:02:56]}  Bg7 {[%clk 0:02:41]} 8. O-O {[%clk 0:02:56]}  O-O {[%clk 0:02:39]} 9. h3 {[%clk 0:02:56]}  Re8 {[%clk 0:02:37]} 10. Nbd2 {[%clk 0:02:54]}  Nh5 {[%clk 0:02:34]} 11. Bh2 {[%clk 0:02:54]}  e5 {[%clk 0:02:35]} 12. Nxe5 {[%clk 0:02:51]}  Nxe5 {[%clk 0:02:35]} 13. dxe5 {[%clk 0:02:48]}  Bxe5 {[%clk 0:02:35]} 14. Bxe5 {[%clk 0:02:48]}  Rxe5 {[%clk 0:02:36]} 15. Nf3 {[%clk 0:02:46]}  Re8 {[%clk 0:02:35]} 16. Qd2 {[%clk 0:02:44]}  Qc7 {[%clk 0:02:31]} 17. Bb5 {[%clk 0:02:24]}  Rd8 {[%clk 0:02:07]} 18. Rfe1 {[%clk 0:02:23]}  a6 {[%clk 0:02:05]} 19. Bf1 {[%clk 0:02:17]}  Bf5 {[%clk 0:02:04]} 20. g4 {[%clk 0:02:10]}  Be4 {[%clk 0:02:04]} 21. gxh5 {[%clk 0:01:50]}  Bxf3 {[%clk 0:02:04]} 22. hxg6 {[%clk 0:01:49]}  hxg6 {[%clk 0:02:03]} 23. Bg2 {[%clk 0:01:47]}  Bxg2 {[%clk 0:01:55]} 24. Kxg2 {[%clk 0:01:47]}  Qb6 {[%clk 0:01:46]} 25. Re7 {[%clk 0:01:36]}  Qf6 {[%clk 0:01:26]} 26. Rae1 {[%clk 0:01:23]}  d4 {[%clk 0:01:11]} 27. c4 {[%clk 0:01:14]}  d3 {[%clk 0:01:04]} 28. Qe3 {[%clk 0:00:58]}  Qc6+ {[%clk 0:00:49]} 29. Qf3 {[%clk 0:00:55]}  Qxc4 {[%clk 0:00:33]} 30. Rc1 {[%clk 0:00:51]}  Qd5 {[%clk 0:00:26]} 31. Re8+ {[%clk 0:00:48]}  Kg7 {[%clk 0:00:24]} 32. Qxd5 {[%clk 0:00:46]}  Rxd5 {[%clk 0:00:19]} 33. Rxa8 {[%clk 0:00:46]}  Kf6 {[%clk 0:00:18]} 34. Re8 {[%clk 0:00:44]}  b5 {[%clk 0:00:15]} 35. Re3 {[%clk 0:00:43]}  d2 {[%clk 0:00:12]} 36. Rd1 {[%clk 0:00:43]}  Kg5 {[%clk 0:00:13]} 37. Re2 {[%clk 0:00:41]}  f5 {[%clk 0:00:14]} 38. Rdxd2 {[%clk 0:00:40]}  Rc5 {[%clk 0:00:15]} 39. Rc2 {[%clk 0:00:38]}  Rd5 {[%clk 0:00:15]} 40. Red2 {[%clk 0:00:39]}  Re5 {[%clk 0:00:13]} 41. Kg3 {[%clk 0:00:39]}  Re4 {[%clk 0:00:12]} 42. Rd6 {[%clk 0:00:37]}  a5 {[%clk 0:00:12]} 43. Rcc6 {[%clk 0:00:37]}  f4+ {[%clk 0:00:12]} 44. Kf3 {[%clk 0:00:36]}  Ra4 {[%clk 0:00:11]} 45. Rxg6+ {[%clk 0:00:36]}  Kf5 {[%clk 0:00:12]} 46. h4 {[%clk 0:00:34]}  Rxa2 {[%clk 0:00:10]} 47. Rg5# {[%clk 0:00:34]} 1-0


[Site "https://www.chess.com"]

[Event "Titled Tuesday Blitz February 22 Late 2022"]
[White "De Souza, Cristiano Gomes"]
[Black "Ardila, Oscar Humberto"]
[WhiteFideId "2151758"]
[BlackFideId "4404742"]
[WhiteElo "2068"]
[BlackElo "1898"]
[Result "1/2-1/2"]
[Round "06"]
[TimeControl "180+1"]
[Date "2022.02.23"]
[WhiteClock "0:00:11"]
[BlackClock "0:00:05"]

1. d4 {[%clk 0:02:57]}  Nf6 {[%clk 0:02:56]} 2. c4 {[%clk 0:02:57]}  e6 {[%clk 0:02:54]} 3. Nf3 {[%clk 0:02:57]}  Bb4+ {[%clk 0:02:53]} 4. Bd2 {[%clk 0:02:56]}  Qe7 {[%clk 0:02:53]} 5. a3 {[%clk 0:02:56]}  Bxd2+ {[%clk 0:02:52]} 6. Nbxd2 {[%clk 0:02:56]}  O-O {[%clk 0:02:52]} 7. e4 {[%clk 0:02:55]}  d6 {[%clk 0:02:52]} 8. Bd3 {[%clk 0:02:54]}  e5 {[%clk 0:02:52]} 9. d5 {[%clk 0:02:53]}  a5 {[%clk 0:02:48]} 10. b4 {[%clk 0:02:52]}  axb4 {[%clk 0:02:47]} 11. axb4 {[%clk 0:02:52]}  Rxa1 {[%clk 0:02:47]} 12. Qxa1 {[%clk 0:02:44]}  Nbd7 {[%clk 0:02:47]} 13. O-O {[%clk 0:02:40]}  Nh5 {[%clk 0:02:47]} 14. Rc1 {[%clk 0:02:39]}  Nf4 {[%clk 0:02:46]} 15. Bf1 {[%clk 0:02:38]}  Qf6 {[%clk 0:02:46]} 16. Qc3 {[%clk 0:02:31]}  Re8 {[%clk 0:02:43]} 17. Nb3 {[%clk 0:02:28]}  Nf8 {[%clk 0:02:42]} 18. c5 {[%clk 0:02:28]}  Bg4 {[%clk 0:02:37]} 19. Qe3 {[%clk 0:02:20]}  N8g6 {[%clk 0:02:32]} 20. Nfd2 {[%clk 0:02:13]}  Qg5 {[%clk 0:01:55]} 21. Nc4 {[%clk 0:01:48]}  Be2 {[%clk 0:01:49]} 22. Qg3 {[%clk 0:01:40]}  Qxg3 {[%clk 0:01:32]} 23. hxg3 {[%clk 0:01:39]}  Bxf1 {[%clk 0:01:32]} 24. Kxf1 {[%clk 0:01:35]}  Nd3 {[%clk 0:01:30]} 25. Ra1 {[%clk 0:01:30]}  Nxb4 {[%clk 0:01:22]} 26. cxd6 {[%clk 0:01:29]}  cxd6 {[%clk 0:01:22]} 27. Nxd6 {[%clk 0:01:28]}  Rb8 {[%clk 0:01:07]} 28. Nc5 {[%clk 0:01:24]}  h5 {[%clk 0:00:55]} 29. Ndxb7 {[%clk 0:01:15]}  Nc2 {[%clk 0:00:52]} 30. Rc1 {[%clk 0:01:09]}  Nd4 {[%clk 0:00:52]} 31. d6 {[%clk 0:01:08]}  Nf8 {[%clk 0:00:49]} 32. Na5 {[%clk 0:01:01]}  Rb5 {[%clk 0:00:35]} 33. Nab7 {[%clk 0:00:34]}  f6 {[%clk 0:00:34]} 34. f3 {[%clk 0:00:28]}  Rb2 {[%clk 0:00:34]} 35. Ra1 {[%clk 0:00:24]}  Kf7 {[%clk 0:00:28]} 36. Ra8 {[%clk 0:00:19]}  Nfe6 {[%clk 0:00:25]} 37. Rc8 {[%clk 0:00:17]}  Nxc5 {[%clk 0:00:24]} 38. Nxc5 {[%clk 0:00:16]}  Rb1+ {[%clk 0:00:17]} 39. Kf2 {[%clk 0:00:16]}  Rb2+ {[%clk 0:00:18]} 40. Ke1 {[%clk 0:00:16]}  Ne6 {[%clk 0:00:10]} 41. d7 {[%clk 0:00:15]}  Ke7 {[%clk 0:00:06]} 42. Nxe6 {[%clk 0:00:13]}  Kxd7 {[%clk 0:00:06]} 43. Rc7+ {[%clk 0:00:12]}  Kxe6 {[%clk 0:00:06]} 44. Rxg7 {[%clk 0:00:12]}  Rxg2 {[%clk 0:00:07]} 45. Rh7 {[%clk 0:00:10]}  Rxg3 {[%clk 0:00:07]} 46. Kf2 {[%clk 0:00:11]}  Rh3 {[%clk 0:00:07]} 47. Kg2 {[%clk 0:00:11]}  Rh4 {[%clk 0:00:07]} 48. Kg3 {[%clk 0:00:11]}  Rh1 {[%clk 0:00:07]} 49. Kg2 {[%clk 0:00:11]}  Rh4 {[%clk 0:00:07]} 50. Kg3 {[%clk 0:00:11]}  Rh1 {[%clk 0:00:05]} 51. Kg2 {[%clk 0:00:11]}  Rh4 {[%clk 0:00:05]} 1/2-1/2


[Site "https://www.chess.com"]

[Event "Titled Tuesday Blitz February 22 Late 2022"]
[White "Elissalt Cardenas, Hector"]
[Black "Kohler, Aran"]
[WhiteFideId "3500632"]
[BlackFideId "1002856"]
[WhiteElo "2159"]
[BlackElo "2244"]
[Result "1-0"]
[Round "06"]
[TimeControl "180+1"]
[Date "2022.02.23"]
[WhiteClock "0:01:18"]
[BlackClock "0:00:32"]

1. d4 {[%clk 0:03:00]}  d5 {[%clk 0:02:59]} 2. c4 {[%clk 0:02:59]}  c6 {[%clk 0:02:59]} 3. cxd5 {[%clk 0:02:55]}  cxd5 {[%clk 0:02:59]} 4. Bf4 {[%clk 0:02:56]}  Nc6 {[%clk 0:02:57]} 5. e3 {[%clk 0:02:54]}  a6 {[%clk 0:02:57]} 6. Nc3 {[%clk 0:02:47]}  Nf6 {[%clk 0:02:57]} 7. Bd3 {[%clk 0:02:40]}  e6 {[%clk 0:02:51]} 8. Rc1 {[%clk 0:02:33]}  Bd6 {[%clk 0:02:50]} 9. Bxd6 {[%clk 0:02:32]}  Qxd6 {[%clk 0:02:49]} 10. f4 {[%clk 0:02:32]}  b5 {[%clk 0:02:40]} 11. Nf3 {[%clk 0:02:28]}  Bb7 {[%clk 0:02:39]} 12. Ne5 {[%clk 0:02:23]}  Nd7 {[%clk 0:02:24]} 13. Qh5 {[%clk 0:02:17]}  Ndxe5 {[%clk 0:02:09]} 14. fxe5 {[%clk 0:02:11]}  Qe7 {[%clk 0:02:09]} 15. O-O {[%clk 0:02:06]}  g6 {[%clk 0:02:00]} 16. Qh6 {[%clk 0:02:01]}  O-O-O {[%clk 0:01:46]} 17. a4 {[%clk 0:01:54]}  b4 {[%clk 0:01:45]} 18. Nb5 {[%clk 0:01:41]}  axb5 {[%clk 0:01:38]} 19. axb5 {[%clk 0:01:41]}  Ba8 {[%clk 0:01:12]} 20. bxc6 {[%clk 0:01:40]}  Qc7 {[%clk 0:01:08]} 21. Ba6+ {[%clk 0:01:36]}  Kb8 {[%clk 0:01:08]} 22. Rc5 {[%clk 0:01:36]}  Ka7 {[%clk 0:00:37]} 23. Ra1 {[%clk 0:01:33]}  Kb6 {[%clk 0:00:33]} 24. Rb5+ {[%clk 0:01:22]}  Ka7 {[%clk 0:00:31]} 25. Bb7+ {[%clk 0:01:20]}  Kb8 {[%clk 0:00:32]} 26. Rxa8# {[%clk 0:01:18]} 1-0


[Site "https://www.chess.com"]

[Event "Titled Tuesday Blitz February 22 Late 2022"]
[White "Escudero Donoso, Felipe"]
[Black "Virtanen, Teemu"]
[WhiteFideId "3410595"]
[BlackFideId "509850"]
[WhiteElo "2184"]
[BlackElo "1926"]
[Result "0-1"]
[Round "06"]
[TimeControl "180+1"]
[Date "2022.02.23"]
[WhiteClock "0:00:40"]
[BlackClock "0:01:15"]

1. Nf3 {[%clk 0:03:00]}  c5 {[%clk 0:02:57]} 2. c4 {[%clk 0:03:01]}  g6 {[%clk 0:02:56]} 3. e4 {[%clk 0:02:58]}  Bg7 {[%clk 0:02:56]} 4. d4 {[%clk 0:02:59]}  cxd4 {[%clk 0:02:56]} 5. Nxd4 {[%clk 0:03:00]}  Nc6 {[%clk 0:02:56]} 6. Be3 {[%clk 0:03:00]}  Nf6 {[%clk 0:02:55]} 7. Nc3 {[%clk 0:03:00]}  d6 {[%clk 0:02:54]} 8. Be2 {[%clk 0:02:58]}  O-O {[%clk 0:02:52]} 9. O-O {[%clk 0:02:58]}  Bd7 {[%clk 0:02:48]} 10. h3 {[%clk 0:02:57]}  a6 {[%clk 0:02:46]} 11. Qc2 {[%clk 0:02:32]}  Rc8 {[%clk 0:02:44]} 12. Rad1 {[%clk 0:02:32]}  Qa5 {[%clk 0:02:39]} 13. Nb3 {[%clk 0:02:28]}  Qc7 {[%clk 0:02:33]} 14. Rc1 {[%clk 0:02:15]}  Ne5 {[%clk 0:02:27]} 15. c5 {[%clk 0:02:10]}  dxc5 {[%clk 0:02:03]} 16. Nxc5 {[%clk 0:02:02]}  Bc6 {[%clk 0:02:00]} 17. f4 {[%clk 0:01:57]}  Ned7 {[%clk 0:01:55]} 18. Nxd7 {[%clk 0:01:45]}  Nxd7 {[%clk 0:01:56]} 19. Nd5 {[%clk 0:01:44]}  Qd8 {[%clk 0:01:41]} 20. Qb3 {[%clk 0:01:34]}  e6 {[%clk 0:01:22]} 21. Nb6 {[%clk 0:01:14]}  Nxb6 {[%clk 0:01:22]} 22. Bxb6 {[%clk 0:01:15]}  Bd4+ {[%clk 0:01:21]} 23. Bxd4 {[%clk 0:01:09]}  Qxd4+ {[%clk 0:01:22]} 24. Kh2 {[%clk 0:01:06]}  Qxe4 {[%clk 0:01:16]} 25. Rce1 {[%clk 0:00:40]}  Qxg2# {[%clk 0:01:15]} 0-1


[Site "https://www.chess.com"]

[Event "Titled Tuesday Blitz February 22 Late 2022"]
[White "Golubka, Petro"]
[Black "Loay, Sameer"]
[WhiteFideId "14114224"]
[BlackFideId "8104239"]
[WhiteElo "2392"]
[BlackElo "2040"]
[Result "1-0"]
[Round "06"]
[TimeControl "180+1"]
[Date "2022.02.23"]
[WhiteClock "0:02:04"]
[BlackClock "0:00:18"]

1. e4 {[%clk 0:02:57]}  d6 {[%clk 0:03:00]} 2. d4 {[%clk 0:02:55]}  g6 {[%clk 0:03:00]} 3. Nc3 {[%clk 0:02:56]}  Bg7 {[%clk 0:03:00]} 4. Be3 {[%clk 0:02:56]}  a6 {[%clk 0:03:00]} 5. a4 {[%clk 0:02:56]}  Nd7 {[%clk 0:03:00]} 6. Bc4 {[%clk 0:02:56]}  b6 {[%clk 0:02:56]} 7. h4 {[%clk 0:02:55]}  h5 {[%clk 0:02:56]} 8. f3 {[%clk 0:02:54]}  Bb7 {[%clk 0:02:56]} 9. Nh3 {[%clk 0:02:53]}  Ngf6 {[%clk 0:02:53]} 10. Ng5 {[%clk 0:02:53]}  e6 {[%clk 0:02:21]} 11. Qe2 {[%clk 0:02:49]}  Qe7 {[%clk 0:02:21]} 12. O-O-O {[%clk 0:02:48]}  b5 {[%clk 0:02:19]} 13. axb5 {[%clk 0:02:48]}  axb5 {[%clk 0:02:20]} 14. Bxb5 {[%clk 0:02:48]}  Ra1+ {[%clk 0:02:19]} 15. Kd2 {[%clk 0:02:47]}  Rxd1+ {[%clk 0:02:20]} 16. Rxd1 {[%clk 0:02:47]}  O-O {[%clk 0:02:20]} 17. Ke1 {[%clk 0:02:44]}  Ra8 {[%clk 0:02:14]} 18. Kf2 {[%clk 0:02:39]}  c6 {[%clk 0:02:10]} 19. Bd3 {[%clk 0:02:38]}  e5 {[%clk 0:02:01]} 20. Bc4 {[%clk 0:02:35]}  d5 {[%clk 0:01:57]} 21. Bb3 {[%clk 0:02:33]}  exd4 {[%clk 0:01:54]} 22. Bxd4 {[%clk 0:02:34]}  Qb4 {[%clk 0:01:09]} 23. Kg1 {[%clk 0:02:24]}  Re8 {[%clk 0:01:07]} 24. Qf2 {[%clk 0:02:20]}  c5 {[%clk 0:00:54]} 25. Bxf6 {[%clk 0:02:19]}  Bxf6 {[%clk 0:00:54]} 26. Nxd5 {[%clk 0:02:19]}  Bxd5 {[%clk 0:00:54]} 27. Bxd5 {[%clk 0:02:19]}  Bd4 {[%clk 0:00:46]} 28. Rxd4 {[%clk 0:02:17]}  cxd4 {[%clk 0:00:45]} 29. Bxf7+ {[%clk 0:02:18]}  Kf8 {[%clk 0:00:45]} 30. Bxe8 {[%clk 0:02:19]}  Kxe8 {[%clk 0:00:46]} 31. Ne6 {[%clk 0:02:19]}  Qxb2 {[%clk 0:00:43]} 32. Nxd4 {[%clk 0:02:16]}  Ne5 {[%clk 0:00:44]} 33. Qe3 {[%clk 0:02:12]}  Nc4 {[%clk 0:00:41]} 34. Qd3 {[%clk 0:02:08]}  Qc1+ {[%clk 0:00:41]} 35. Kh2 {[%clk 0:02:07]}  Qf4+ {[%clk 0:00:29]} 36. g3 {[%clk 0:02:06]}  Qc7 {[%clk 0:00:20]} 37. Nb5 {[%clk 0:02:05]}  Qc6 {[%clk 0:00:18]} 38. Qxc4 {[%clk 0:02:04]} 1-0


[Site "https://www.chess.com"]

[Event "Titled Tuesday Blitz February 22 Late 2022"]
[White "Goryachkina, Aleksandra"]
[Black "Mikheev, Stanislav"]
[WhiteFideId "4147103"]
[BlackFideId "4135920"]
[WhiteElo "2426"]
[BlackElo "2249"]
[Result "1-0"]
[Round "06"]
[TimeControl "180+1"]
[Date "2022.02.23"]
[WhiteClock "0:00:12"]
[BlackClock "0:00:24"]

1. e4 {[%clk 0:03:00]}  e6 {[%clk 0:03:00]} 2. d4 {[%clk 0:02:59]}  d5 {[%clk 0:03:01]} 3. Nd2 {[%clk 0:03:00]}  c5 {[%clk 0:03:00]} 4. exd5 {[%clk 0:03:00]}  exd5 {[%clk 0:03:01]} 5. Bb5+ {[%clk 0:02:56]}  Bd7 {[%clk 0:02:59]} 6. Bxd7+ {[%clk 0:02:55]}  Qxd7 {[%clk 0:02:59]} 7. Ngf3 {[%clk 0:02:54]}  Nf6 {[%clk 0:02:57]} 8. O-O {[%clk 0:02:54]}  cxd4 {[%clk 0:02:49]} 9. Nxd4 {[%clk 0:02:49]}  Be7 {[%clk 0:02:50]} 10. N2b3 {[%clk 0:02:34]}  O-O {[%clk 0:02:50]} 11. Qf3 {[%clk 0:02:33]}  Nc6 {[%clk 0:02:49]} 12. Bf4 {[%clk 0:02:26]}  Rfe8 {[%clk 0:02:45]} 13. Rad1 {[%clk 0:02:25]}  a6 {[%clk 0:02:36]} 14. h3 {[%clk 0:02:21]}  Rac8 {[%clk 0:02:35]} 15. c3 {[%clk 0:02:20]}  Nxd4 {[%clk 0:02:30]} 16. Rxd4 {[%clk 0:02:15]}  Qf5 {[%clk 0:02:11]} 17. Rfd1 {[%clk 0:02:12]}  Rcd8 {[%clk 0:01:56]} 18. R4d3 {[%clk 0:02:06]}  Qe4 {[%clk 0:01:48]} 19. Bg5 {[%clk 0:01:57]}  Qxf3 {[%clk 0:01:34]} 20. Rxf3 {[%clk 0:01:57]}  Ne4 {[%clk 0:01:34]} 21. Bxe7 {[%clk 0:01:55]}  Rxe7 {[%clk 0:01:35]} 22. Rfd3 {[%clk 0:01:54]}  Red7 {[%clk 0:01:27]} 23. f3 {[%clk 0:01:43]}  Nf6 {[%clk 0:01:26]} 24. Kf2 {[%clk 0:01:43]}  Kf8 {[%clk 0:01:26]} 25. g4 {[%clk 0:01:40]}  h6 {[%clk 0:01:25]} 26. h4 {[%clk 0:01:39]}  g5 {[%clk 0:01:25]} 27. hxg5 {[%clk 0:01:38]}  hxg5 {[%clk 0:01:26]} 28. Nd4 {[%clk 0:01:36]}  Ne8 {[%clk 0:01:14]} 29. Nf5 {[%clk 0:01:34]}  Ng7 {[%clk 0:01:14]} 30. Ne3 {[%clk 0:01:33]}  Ne6 {[%clk 0:00:56]} 31. Rxd5 {[%clk 0:01:32]}  Ke7 {[%clk 0:00:43]} 32. Nf5+ {[%clk 0:00:55]}  Ke8 {[%clk 0:00:44]} 33. Rxd7 {[%clk 0:00:49]}  Rxd7 {[%clk 0:00:43]} 34. Rxd7 {[%clk 0:00:50]}  Kxd7 {[%clk 0:00:44]} 35. Ke3 {[%clk 0:00:50]}  Nf4 {[%clk 0:00:37]} 36. Ke4 {[%clk 0:00:49]}  Ke6 {[%clk 0:00:36]} 37. Nd4+ {[%clk 0:00:48]}  Kf6 {[%clk 0:00:35]} 38. Nb3 {[%clk 0:00:48]}  b6 {[%clk 0:00:34]} 39. a4 {[%clk 0:00:47]}  Ke6 {[%clk 0:00:32]} 40. a5 {[%clk 0:00:44]}  bxa5 {[%clk 0:00:33]} 41. Nxa5 {[%clk 0:00:44]}  Kd6 {[%clk 0:00:26]} 42. Nc4+ {[%clk 0:00:42]}  Kc5 {[%clk 0:00:26]} 43. Ne5 {[%clk 0:00:42]}  f6 {[%clk 0:00:18]} 44. Nd3+ {[%clk 0:00:31]}  Kc4 {[%clk 0:00:19]} 45. Nxf4 {[%clk 0:00:29]}  gxf4 {[%clk 0:00:20]} 46. Kxf4 {[%clk 0:00:26]}  Kb3 {[%clk 0:00:20]} 47. g5 {[%clk 0:00:19]}  fxg5+ {[%clk 0:00:20]} 48. Kxg5 {[%clk 0:00:20]}  a5 {[%clk 0:00:20]} 49. c4 {[%clk 0:00:09]}  a4 {[%clk 0:00:21]} 50. c5 {[%clk 0:00:09]}  Kxb2 {[%clk 0:00:22]} 51. c6 {[%clk 0:00:09]}  a3 {[%clk 0:00:23]} 52. c7 {[%clk 0:00:10]}  a2 {[%clk 0:00:24]} 53. c8=Q {[%clk 0:00:10]}  a1=Q {[%clk 0:00:25]} 54. Qh8+ {[%clk 0:00:11]}  Kb1 {[%clk 0:00:25]} 55. Qxa1+ {[%clk 0:00:11]}  Kxa1 {[%clk 0:00:24]} 56. f4 {[%clk 0:00:12]} 1-0


[Site "https://www.chess.com"]

[Event "Titled Tuesday Blitz February 22 Late 2022"]
[White "Guz, Ari"]
[Black "Sharafiev, Azat"]
[WhiteFideId "2825759"]
[BlackFideId "4186214"]
[WhiteElo "1913"]
[BlackElo "2299"]
[Result "0-1"]
[Round "06"]
[TimeControl "180+1"]
[Date "2022.02.23"]
[WhiteClock "0:01:12"]
[BlackClock "0:01:35"]

1. d4 {[%clk 0:03:00]}  Nf6 {[%clk 0:02:54]} 2. Bg5 {[%clk 0:02:58]}  Ne4 {[%clk 0:02:53]} 3. Bf4 {[%clk 0:02:56]}  d5 {[%clk 0:02:51]} 4. e3 {[%clk 0:02:56]}  Bf5 {[%clk 0:02:49]} 5. Bd3 {[%clk 0:02:57]}  e6 {[%clk 0:02:47]} 6. c4 {[%clk 0:02:56]}  c6 {[%clk 0:02:47]} 7. Ne2 {[%clk 0:02:53]}  Bb4+ {[%clk 0:02:44]} 8. Nbc3 {[%clk 0:02:53]}  g5 {[%clk 0:02:36]} 9. Bg3 {[%clk 0:02:50]}  h5 {[%clk 0:02:37]} 10. h4 {[%clk 0:02:47]}  Nxg3 {[%clk 0:02:36]} 11. Nxg3 {[%clk 0:02:47]}  Bxc3+ {[%clk 0:02:33]} 12. bxc3 {[%clk 0:02:46]}  Bxd3 {[%clk 0:02:34]} 13. Qxd3 {[%clk 0:02:47]}  gxh4 {[%clk 0:02:34]} 14. Ne2 {[%clk 0:02:47]}  Nd7 {[%clk 0:02:33]} 15. c5 {[%clk 0:02:47]}  b6 {[%clk 0:02:31]} 16. cxb6 {[%clk 0:02:41]}  axb6 {[%clk 0:02:30]} 17. Nf4 {[%clk 0:02:37]}  Nf6 {[%clk 0:02:27]} 18. Rxh4 {[%clk 0:02:28]}  Ne4 {[%clk 0:02:20]} 19. Rh1 {[%clk 0:02:15]}  Ra3 {[%clk 0:02:19]} 20. Ne2 {[%clk 0:02:16]}  Qg5 {[%clk 0:02:16]} 21. Kf1 {[%clk 0:02:16]}  h4 {[%clk 0:02:15]} 22. f3 {[%clk 0:02:15]}  Rg8 {[%clk 0:02:10]} 23. Rg1 {[%clk 0:01:58]}  Ng3+ {[%clk 0:01:56]} 24. Nxg3 {[%clk 0:01:55]}  Qxg3 {[%clk 0:01:56]} 25. Qb1 {[%clk 0:01:44]}  h3 {[%clk 0:01:50]} 26. Qxb6 {[%clk 0:01:41]}  h2 {[%clk 0:01:47]} 27. Qxc6+ {[%clk 0:01:40]}  Ke7 {[%clk 0:01:42]} 28. Qc5+ {[%clk 0:01:20]}  Kf6 {[%clk 0:01:41]} 29. Ke2 {[%clk 0:01:12]}  hxg1=Q {[%clk 0:01:33]} 30. Rxg1 {[%clk 0:01:12]}  Rxa2+ {[%clk 0:01:34]} 31. Kd3 {[%clk 0:01:12]}  Qf2 {[%clk 0:01:35]} 0-1


[Site "https://www.chess.com"]

[Event "Titled Tuesday Blitz February 22 Late 2022"]
[White "Ibarra Jerez, Jose Carlos"]
[Black "Kovanova, Baira"]
[WhiteFideId "2226332"]
[BlackFideId "4164083"]
[WhiteElo "2626"]
[BlackElo "2190"]
[Result "1/2-1/2"]
[Round "06"]
[TimeControl "180+1"]
[Date "2022.02.23"]
[WhiteClock "0:00:03"]
[BlackClock "0:00:10"]

1. Nf3 {[%clk 0:03:00]}  Nf6 {[%clk 0:01:25]} 2. g3 {[%clk 0:03:00]}  d5 {[%clk 0:01:24]} 3. Bg2 {[%clk 0:03:00]}  c5 {[%clk 0:01:23]} 4. O-O {[%clk 0:03:00]}  Nc6 {[%clk 0:01:24]} 5. d4 {[%clk 0:03:01]}  cxd4 {[%clk 0:01:24]} 6. Nxd4 {[%clk 0:03:01]}  Bd7 {[%clk 0:01:13]} 7. Nb3 {[%clk 0:02:50]}  e6 {[%clk 0:01:09]} 8. Nc3 {[%clk 0:02:51]}  Be7 {[%clk 0:01:08]} 9. e4 {[%clk 0:02:51]}  dxe4 {[%clk 0:01:07]} 10. Nxe4 {[%clk 0:02:51]}  Nxe4 {[%clk 0:01:07]} 11. Bxe4 {[%clk 0:02:52]}  O-O {[%clk 0:01:06]} 12. c3 {[%clk 0:02:48]}  e5 {[%clk 0:01:06]} 13. Qe2 {[%clk 0:02:45]}  Qc8 {[%clk 0:00:58]} 14. Rd1 {[%clk 0:02:43]}  Bg4 {[%clk 0:00:54]} 15. f3 {[%clk 0:02:41]}  Be6 {[%clk 0:00:54]} 16. Be3 {[%clk 0:02:40]}  Qc7 {[%clk 0:00:52]} 17. Nc5 {[%clk 0:02:21]}  Bxc5 {[%clk 0:00:52]} 18. Bxc5 {[%clk 0:02:22]}  Rfd8 {[%clk 0:00:52]} 19. b4 {[%clk 0:02:18]}  f5 {[%clk 0:00:49]} 20. Bc2 {[%clk 0:02:11]}  b6 {[%clk 0:00:49]} 21. Bf2 {[%clk 0:02:09]}  Ne7 {[%clk 0:00:48]} 22. Qe1 {[%clk 0:01:40]}  Kh8 {[%clk 0:00:46]} 23. a4 {[%clk 0:01:36]}  Rac8 {[%clk 0:00:42]} 24. Rxd8+ {[%clk 0:01:35]}  Rxd8 {[%clk 0:00:42]} 25. a5 {[%clk 0:01:22]}  b5 {[%clk 0:00:39]} 26. Bc5 {[%clk 0:01:17]}  Ng6 {[%clk 0:00:36]} 27. Rd1 {[%clk 0:01:13]}  Re8 {[%clk 0:00:34]} 28. Rd6 {[%clk 0:01:11]}  e4 {[%clk 0:00:30]} 29. f4 {[%clk 0:00:59]}  Bc4 {[%clk 0:00:25]} 30. Qe3 {[%clk 0:00:59]}  a6 {[%clk 0:00:23]} 31. h4 {[%clk 0:00:56]}  Rd8 {[%clk 0:00:20]} 32. Rxa6 {[%clk 0:00:44]}  Qf7 {[%clk 0:00:16]} 33. Bd4 {[%clk 0:00:39]}  Ne7 {[%clk 0:00:15]} 34. Ra7 {[%clk 0:00:36]}  Qf8 {[%clk 0:00:13]} 35. Bc5 {[%clk 0:00:34]}  Re8 {[%clk 0:00:13]} 36. a6 {[%clk 0:00:34]}  Qf7 {[%clk 0:00:13]} 37. Qd4 {[%clk 0:00:32]}  Qg6 {[%clk 0:00:12]} 38. Kh2 {[%clk 0:00:21]}  Nc6 {[%clk 0:00:12]} 39. Qd7 {[%clk 0:00:14]}  Nxa7 {[%clk 0:00:12]} 40. Qxa7 {[%clk 0:00:15]}  Qg4 {[%clk 0:00:12]} 41. Bd4 {[%clk 0:00:03]}  Qe2+ {[%clk 0:00:11]} 42. Kh3 {[%clk 0:00:03]}  Qf1+ {[%clk 0:00:11]} 43. Kh2 {[%clk 0:00:04]}  Qe2+ {[%clk 0:00:11]} 44. Kg1 {[%clk 0:00:03]}  Qe1+ {[%clk 0:00:10]} 45. Kh2 {[%clk 0:00:03]}  Qe2+ {[%clk 0:00:10]} 1/2-1/2


[Site "https://www.chess.com"]